bitfinex-derivatives/quotes_SOLF0:USTF0_20250528
["timestamp","ask_amount","ask_price","bid_price","bid_amount"]
[1748465695034,6.92964781,170.23,170.22,5.8729]
[1748465697330,0.04498983,170.24,170.22,5.8729]
[1748465698135,0.04498983,170.24,170.21,4.14679237]
[1748465698136,0.04498983,170.24,170.21,10.01999237]
[1748465698435,6.97463764,170.24,170.21,10.01999237]
[1748465699527,6.97463764,170.24,170.22,5.8729]
[1748465702236,0.04498983,170.24,170.22,5.8729]
[1748465702440,6.97463764,170.24,170.22,5.8729]
[1748465702743,6.97463764,170.24,170.23,5.8726]
[1748465705641,0.04498983,170.24,170.23,5.8726]
[1748465706840,6.97463764,170.24,170.23,5.8726]
[1748465709347,6.92964781,170.26,170.25,5.8719]
[1748465709746,6.92964781,170.26,170.21,4.1019]
[1748465710152,6.92964781,170.24,170.21,4.1019]
[1748465710347,6.92964781,170.22,170.16,2.0464]
[1748465710645,6.92964781,170.22,170.21,5.8733]
[1748465712150,6.97170246,170.24,170.17,29.76288137]
[1748465712949,6.97170246,170.24,170.22,5.8729]
[1748465717253,6.97170246,170.24,170.23,5.8726]
[1748465717551,6.97170246,170.24,170.21,0.03741503]
[1748465717752,6.97170246,170.24,170.22,5.8727]
[1748465718753,6.97170246,170.24,170.23,5.8726]
[1748465718956,0.04205465,170.24,170.23,5.8726]
[1748465719957,6.92964781,170.29,170.27,5.8712]
[1748465720145,6.92964781,170.29,170.22,8.85754781]
[1748465720353,6.92964781,170.29,170.24,5.872]
[1748465720551,12.80034781,170.29,170.22,10.83044781]
[1748465720852,0.03738785,170.27,170.24,0.0375563]
[1748465721453,0.03738785,170.27,170.25,5.8718]
[1748465722752,0.03738785,170.27,170.26,5.8716]
[1748465725158,6.96703566,170.27,170.24,0.0375563]
[1748465725557,12.83853566,170.27,170.24,5.9096563]
[1748465725957,5.8716,170.26,170.24,0.0375563]
[1748465726154,6.92964781,170.25,170.24,0.0375563]
[1748465727950,5.8716,170.26,170.24,0.0375563]
[1748465728356,0.03738785,170.27,170.24,0.0375563]
[1748465728561,5.8719,170.26,170.24,0.0375563]
[1748465729153,0.03738785,170.27,170.24,5.9098563]
[1748465729355,0.03738785,170.27,170.24,0.0375563]
[1748465730659,0.03738785,170.27,170.25,5.8717]
[1748465730856,0.03738785,170.27,170.24,0.0375563]
[1748465731260,0.03738785,170.27,170.25,5.8718]
[1748465732863,0.03738785,170.27,170.26,5.8716]
[1748465735066,11.7309,170.44,170.26,5.88]
[1748465735359,11.7309,170.44,170.28,10.82745337]
[1748465735360,5.8682,170.36,170.28,10.82745337]
[1748465735560,5.8682,170.36,170.33,5.8691]
[1748465735965,5.90547877,170.36,170.33,5.91109538]
[1748465736559,0.03727877,170.36,170.34,5.8689]
[1748465739468,5.90547877,170.36,170.33,5.91099538]
[1748465739863,0.03727877,170.36,170.33,0.04199538]
[1748465741068,0.03727877,170.36,170.34,5.8688]
[1748465746073,0.03727877,170.36,170.35,5.8685]
[1748465747264,29.72,170.43,170.34,10.82745337]
[1748465747469,29.72,170.43,170.34,14.91755337]
[1748465748174,537.02,170.46,170.34,14.91755337]
[1748465748376,0.04111083,170.42,170.38,0.0399926]
[1748465748770,0.04111083,170.42,170.4,5.8666]
[1748465749876,0.04111083,170.42,170.39,5.8671]
[1748465750365,5.90721083,170.42,170.39,5.8671]
[1748465750770,5.90721083,170.42,170.4,5.8668]
[1748465750966,0.04111083,170.42,170.38,0.0399926]
[1748465754970,0.04111083,170.42,170.4,5.8668]
[1748465757368,0.04111083,170.42,170.41,5.8665]
[1748465760378,0.04111083,170.42,170.4,5.8667]
[1748465761286,0.04111083,170.42,170.41,5.8665]
[1748465769181,0.04111083,170.42,170.4,5.8667]
[1748465769579,0.04111083,170.42,170.38,0.0399926]
[1748465770083,0.04111083,170.42,170.4,5.8665]
[1748465771184,0.04111083,170.42,170.41,5.8665]
[1748465775380,29.76,170.49,170.44,5.8651]
[1748465775580,5.8646,170.47,170.44,5.8651]
[1748465775784,6.91319382,170.48,170.43,6.91319382]
[1748465775985,6.91319382,170.46,170.38,36.67319382]
[1748465776186,5.8661,170.43,170.4,0.04488434]
[1748465776485,5.8661,170.43,170.4,5.91158434]
[1748465776687,5.8661,170.43,170.4,0.04488434]
[1748465776887,5.8661,170.43,170.4,6.95807816]
[1748465777087,5.8661,170.43,170.4,12.82477816]
[1748465777883,5.8661,170.43,170.4,5.91158434]
[1748465778890,5.8663,170.42,170.4,5.91158434]
[1748465780384,5.8659,170.43,170.4,5.91158434]
[1748465780993,0.04217351,170.44,170.4,0.04488434]
[1748465781194,0.04217351,170.44,170.4,10.84756947]
[1748465781988,0.04217351,170.44,170.43,5.8658]
[1748465786090,33.6134,170.53,170.43,40.40268513]
[1748465786983,0.04100543,170.49,170.47,5.8643]
[1748465787186,0.04100543,170.49,170.46,0.03775187]
[1748465787990,5.8643,170.48,170.46,5.90255187]
[1748465788588,5.8644,170.47,170.46,0.03775187]
[1748465788897,29.64100543,170.49,170.4,29.6]
[1748465789091,29.6,170.49,170.4,29.6]
[1748465789697,5.9022068,170.46,170.43,5.90533196]
[1748465790696,5.9022068,170.46,170.44,5.8654]
[1748465790897,0.0371068,170.46,170.43,0.03973196]
[1748465791388,0.0371068,170.46,170.44,5.8655]
[1748465793197,0.0371068,170.46,170.43,0.03973196]
[1748465795000,5.9019068,170.46,170.44,5.8653]
[1748465796688,0.0371068,170.46,170.44,5.8653]
[1748465797901,5.9019068,170.46,170.44,5.8653]
[1748465799593,0.0371068,170.46,170.45,5.8651]
[1748465802601,6.8e-06,170.46,170.45,5.8651]
[1748465803005,14.69428513,170.58,170.45,5.86]
[1748465803006,29.6,170.55,170.45,5.86]
[1748465803202,29.6,170.55,170.46,10.80268513]
[1748465803404,29.6,170.55,170.51,5.863]
[1748465803797,29.6,170.55,170.44,154.28268513]
[1748465804006,0.04426275,170.51,170.48,5.90745445]
[1748465804403,0.04426275,170.51,170.48,0.04355445]
[1748465804602,0.04426275,170.51,170.49,5.8637]
[1748465808605,5.90736275,170.51,170.48,5.90765445]
[1748465809807,5.8634,170.5,170.48,5.90765445]
[1748465810207,5.90756275,170.51,170.48,5.90765445]
[1748465811412,0.04426275,170.51,170.49,5.8637]
[1748465812610,0.04426275,170.51,170.5,5.8634]
[1748465823516,6.275e-05,170.51,170.5,5.8634]
[1748465828215,6.275e-05,170.51,170.49,5.8637]
[1748465828415,6.275e-05,170.51,170.48,29.62355445]
[1748465828717,5.86326275,170.51,170.48,0.04355445]
[1748465828920,6.275e-05,170.51,170.48,0.04355445]
[1748465829418,5.8637,170.49,170.48,0.04355445]
[1748465831616,5.8635,170.5,170.48,0.04355445]
[1748465832519,6.275e-05,170.51,170.48,0.04355445]
[1748465832922,6.275e-05,170.51,170.49,5.8636]
[1748465834126,6.275e-05,170.51,170.48,5.90765445]
[1748465834320,6.275e-05,170.51,170.48,0.04355445]
[1748465835922,5.8638,170.49,170.48,0.04355445]
[1748465838331,6.275e-05,170.51,170.42,5.8488]
[1748465838332,5.8649,170.46,170.42,3.9]
[1748465838830,5.8649,170.46,170.43,5.8656]
[1748465839230,5.8652,170.45,170.42,5.8661]
[1748465839534,0.0424698,170.46,170.43,0.04470479]
[1748465839729,5.8654,170.45,170.43,0.04470479]
[1748465842332,5.8655,170.44,170.43,0.04470479]
[1748465848235,5.8653,170.45,170.43,0.04470479]
[1748465849537,29.6024698,170.46,170.43,0.04470479]
[1748465850139,29.6024698,170.46,170.45,5.8652]
[1748465850733,0.0424698,170.46,170.45,5.8652]
[1748465855753,6.98e-05,170.46,170.45,5.8652]
[1748465857053,29.56,170.55,170.54,5.8621]
[1748465857751,35.4209,170.58,170.54,5.8621]
[1748465857944,35.46068052,170.58,170.54,5.9034999]
[1748465858447,35.46068052,170.58,170.54,0.0413999]
[1748465859251,35.46068052,170.58,170.54,5.9034999]
[1748465861249,5.8612,170.57,170.54,5.9034999]
[1748465861449,29.59978052,170.58,170.54,0.0413999]
[1748465862155,5.8614,170.57,170.54,0.0413999]
[1748465863455,5.8614,170.57,170.54,5.9033999]
[1748465865053,5.8615,170.56,170.54,0.0413999]
[1748465866454,5.8612,170.57,170.54,0.0413999]
[1748465867049,35.46048052,170.58,170.54,5.9033999]
[1748465867254,29.59978052,170.58,170.54,0.0413999]
[1748465867959,29.59978052,170.58,170.55,5.8617]
[1748465869152,29.59978052,170.58,170.56,5.8613]
[1748465869358,0.03978052,170.58,170.54,0.0413999]
[1748465869757,0.03978052,170.58,170.55,5.8615]
[1748465871659,0.03978052,170.58,170.54,0.0413999]
[1748465874062,5.8613,170.57,170.54,5.9034999]
[1748465874469,0.03978052,170.58,170.54,0.0413999]
[1748465875867,5.8611,170.57,170.54,5.9031999]
[1748465876666,5.8611,170.57,170.55,5.8617]
[1748465876867,5.90068052,170.58,170.55,5.8617]
[1748465877166,0.03978052,170.58,170.55,5.8617]
[1748465878969,5.90048052,170.58,170.55,5.8617]
[1748465884263,5.90048052,170.58,170.56,5.8614]
[1748465884669,5.90048052,170.58,170.54,0.0413999]
[1748465884972,5.90048052,170.58,170.55,5.8615]
[1748465885575,5.90048052,170.58,170.54,0.0413999]
[1748465886473,5.90048052,170.58,170.55,5.8616]
[1748465889980,5.8611,170.57,170.55,5.8616]
[1748465891272,5.90068052,170.58,170.55,5.8616]
[1748465892468,5.90068052,170.58,170.56,5.8613]
[1748465896082,0.03978052,170.58,170.56,5.8613]
[1748465896379,0.03978052,170.58,170.57,5.8611]
[1748465898473,8.052e-05,170.58,170.57,5.8611]
[1748465899381,536.0,170.67,170.63,5.8588]
[1748465899678,29.54,170.67,170.58,1.9792]
[1748465900082,29.54,170.67,170.64,5.8584]
[1748465900279,29.56070291,170.67,170.64,5.89743943]
[1748465900581,29.56070291,170.67,170.65,5.8582]
[1748465900582,0.02070291,170.67,170.65,5.8582]
[1748465901480,0.02070291,170.67,170.66,5.858]
[1748465902476,31.5526,170.73,170.68,5.857]
[1748465903283,5.8561,170.72,170.69,5.8569]
[1748465903582,29.52,170.73,170.69,0.04311089]
[1748465904686,5.8566,170.7,170.69,0.04311089]
[1748465910388,5.8563,170.71,170.69,0.04311089]
[1748465910791,29.52,170.73,170.69,0.04311089]
[1748465910792,5.8566,170.7,170.69,0.04311089]
[1748465911587,29.52,170.73,170.69,0.04311089]
[1748465912000,5.8565,170.71,170.69,0.04311089]
[1748465912291,29.52,170.73,170.69,0.04311089]
[1748465913288,35.51175288,170.76,170.69,0.04311089]
[1748465913792,35.51175288,170.76,170.72,5.8558]
[1748465914197,35.51175288,170.76,170.69,0.04311089]
[1748465914398,5.8551,170.75,170.69,0.04311089]
[1748465914896,5.8551,170.75,170.72,5.8559]
[1748465916293,41.36635288,170.76,170.73,5.8555]
[1748465916494,41.36635288,170.76,170.73,5.89755732]
[1748465916689,35.51175288,170.76,170.73,0.04205732]
[1748465916894,6.01175288,170.76,170.73,0.04205732]
[1748465918595,6.01175288,170.76,170.74,5.8552]
[1748465919496,6.01175288,170.76,170.75,5.8549]
[1748465930702,6.01175288,170.76,170.73,0.04205732]
[1748465931300,11.86655288,170.76,170.73,5.89735732]
[1748465931696,6.01175288,170.76,170.73,0.04205732]
[1748465934009,6.01175288,170.76,170.73,5.89745732]
[1748465934410,6.01175288,170.76,170.73,0.04205732]
[1748465936913,5.8549,170.75,170.73,0.04205732]
[1748465937908,11.86645288,170.76,170.73,0.04205732]
[1748465938211,6.01175288,170.76,170.73,0.04205732]
[1748465939309,11.86645288,170.76,170.73,5.89755732]
[1748465941314,5.8549,170.75,170.73,0.04205732]
[1748465942010,6.01175288,170.76,170.73,0.04205732]
[1748465943109,11.86635288,170.76,170.73,5.89725732]
[1748465943309,6.01175288,170.76,170.73,0.04205732]
[1748465943514,6.01175288,170.76,170.65,3.8632]
[1748465943515,10.80268513,170.75,170.65,3.8632]
[1748465943704,14.75688513,170.75,170.67,5.8575]
[1748465943905,14.75688513,170.75,170.65,3.8632]
[1748465944409,5.89375112,170.72,170.68,0.04413092]
[1748465944916,0.03785112,170.72,170.68,0.04413092]
[1748465945415,5.89395112,170.72,170.69,5.8567]
[1748465946321,0.03785112,170.72,170.7,5.8566]
[1748465947413,0.03785112,170.72,170.71,5.8562]
[1748465947712,0.03785112,170.72,170.68,0.04413092]
[1748465947914,0.03785112,170.72,170.7,5.8563]
[1748465948114,5.89405112,170.72,170.68,0.04413092]
[1748465948323,5.89405112,170.72,170.69,5.8566]
[1748465948511,0.03785112,170.72,170.68,0.04413092]
[1748465950217,5.89385112,170.72,170.69,5.8567]
[1748465950616,0.03785112,170.72,170.68,0.04413092]
[1748465950812,0.03785112,170.72,170.69,5.8567]
[1748465951324,0.03785112,170.72,170.68,0.04413092]
[1748465951818,0.03785112,170.72,170.71,5.8562]
[1748465952322,0.03785112,170.72,170.68,0.04413092]
[1748465954313,29.51785112,170.72,170.68,0.04413092]
[1748465955312,0.03785112,170.72,170.68,0.04413092]
[1748465956220,0.03785112,170.72,170.71,5.8562]
[1748465956917,0.03785112,170.72,170.68,0.04413092]
[1748465959122,0.03785112,170.72,170.69,5.8567]
[1748465959416,0.03785112,170.72,170.68,0.04413092]
[1748465959821,5.89385112,170.72,170.69,5.8567]
[1748465961019,0.03785112,170.72,170.68,0.04413092]
[1748465961423,5.89395112,170.72,170.68,5.90113092]
[1748465961623,5.89395112,170.72,170.68,0.04413092]
[1748465961925,0.03785112,170.72,170.68,0.04413092]
[1748465962521,0.03785112,170.72,170.69,5.8569]
[1748465963521,0.03785112,170.72,170.68,0.04413092]
[1748465966426,5.89395112,170.72,170.69,5.8569]
[1748465966823,5.89395112,170.72,170.68,0.04413092]
[1748465967019,5.89395112,170.72,170.69,5.8569]
[1748465967222,0.03785112,170.72,170.68,0.04413092]
[1748465968232,0.03785112,170.72,170.7,5.8563]
[1748465968431,0.03785112,170.72,170.68,0.04413092]
[1748465968930,0.03785112,170.72,170.71,5.8562]
[1748465971433,0.03785112,170.72,170.68,0.04413092]
[1748465971434,0.03785112,170.72,170.7,5.8564]
[1748465972031,0.03785112,170.72,170.71,5.8562]
[1748465974838,0.03785112,170.72,170.68,0.04413092]
[1748465975242,0.03785112,170.72,170.7,5.8564]
[1748465975445,0.03785112,170.72,170.68,0.04413092]
[1748465976933,0.03785112,170.72,170.71,5.8562]
[1748465992451,6.01175288,170.76,170.69,2.0405]
[1748465992658,6.01175288,170.76,170.7,31.5406]
[1748465993652,6.01175288,170.76,170.75,5.8549]
[1748465993959,6.01175288,170.76,170.7,31.5406]
[1748465993960,6.01175288,170.76,170.74,0.03846145]
[1748465996258,6.01175288,170.76,170.75,5.8549]
[1748465996959,6.01175288,170.76,170.74,5.89346145]
[1748465997353,6.01175288,170.76,170.74,0.03846145]
[1748465997753,6.01175288,170.76,170.75,5.8549]
[1748466010466,6.01175288,170.76,170.74,5.89356145]
[1748466010665,6.01175288,170.76,170.74,0.03846145]
[1748466011069,12.89736752,170.76,170.74,0.03846145]
[1748466011970,6.01175288,170.76,170.74,0.03846145]
[1748466012874,5.8549,170.75,170.74,0.03846145]
[1748466013474,6.01175288,170.76,170.74,0.03846145]
[1748466013675,11.86655288,170.76,170.74,0.03846145]
[1748466014569,5.8549,170.75,170.74,0.03846145]
[1748466015374,5.8558,170.73,170.7,5.8565]
[1748466015976,5.8558,170.73,170.71,5.8562]
[1748466016679,5.8558,170.73,170.7,5.89875266]
[1748466016988,0.04129998,170.74,170.7,0.04235266]
[1748466017278,29.54,170.73,170.7,0.04235266]
[1748466017872,5.8562,170.71,170.7,0.04235266]
[1748466030894,40.3045073,170.73,170.61,31.5702]
[1748466031196,10.7645073,170.7,170.61,31.5702]
[1748466031590,5.8571,170.69,170.61,31.5702]
[1748466031994,0.03779988,170.67,170.65,5.8581]
[1748466032296,0.03779988,170.67,170.63,0.03880914]
[1748466033095,0.03779988,170.67,170.65,5.8581]
[1748466033397,0.03779988,170.67,170.63,0.03880914]
[1748466033891,6.89706453,170.64,170.63,0.03880914]
[1748466034608,6.89706453,170.65,170.63,0.03880914]
[1748466036503,12.75556453,170.65,170.63,0.03880914]
[1748466036697,6.89706453,170.65,170.63,0.03880914]
[1748466037496,5.8586,170.64,170.63,0.03880914]
[1748466038695,5.8599,170.61,170.57,1.9173]
[1748466039007,12.75696453,170.61,170.57,1.9173]
[1748466039307,6.89706453,170.61,170.57,1.9173]
[1748466039702,6.93573511,170.61,170.57,1.95555541]
[1748466039904,5.8602,170.6,170.57,7.81655541]
[1748466041503,5.8604,170.59,170.57,1.95555541]
[1748466041706,5.8604,170.59,170.57,0.03825541]
[1748466042104,5.8607,170.58,170.57,0.03825541]
[1748466045805,5.8601,170.6,170.57,0.03825541]
[1748466046007,0.03867058,170.61,170.57,0.03825541]
[1748466046916,5.8607,170.59,170.57,0.03825541]
[1748466048717,5.8607,170.58,170.57,0.03825541]
[1748466064022,12.76448771,170.58,170.57,0.03825541]
[1748466065320,5.8607,170.58,170.57,0.03825541]
[1748466068127,12.76448771,170.58,170.57,0.03825541]
[1748466073135,0.03867058,170.61,170.57,0.03825541]
[1748466073331,6.90378771,170.66,170.59,6.90378771]
[1748466073536,29.5,170.68,170.6,2.0663]
[1748466073837,5.8582,170.66,170.62,5.8591]
[1748466074225,5.8582,170.66,170.63,5.8589]
[1748466074427,5.90251473,170.66,170.62,0.04162865]
[1748466074935,5.90251473,170.66,170.62,5.90052865]
[1748466078536,5.8583,170.65,170.62,5.90052865]
[1748466079238,0.04431473,170.66,170.62,0.04162865]
[1748466079739,5.8589,170.63,170.62,0.04162865]
[1748466080236,5.8588,170.64,170.62,0.04162865]
[1748466080437,0.04431473,170.66,170.62,0.04162865]
[1748466082044,5.90231473,170.66,170.63,5.8588]
[1748466083642,5.90231473,170.66,170.62,5.90072865]
[1748466084042,0.04431473,170.66,170.63,5.8586]
[1748466084241,0.04431473,170.66,170.62,0.04162865]
[1748466084434,0.04431473,170.66,170.62,2.12352865]
[1748466085137,0.04431473,170.66,170.64,5.8584]
[1748466092556,0.04431473,170.66,170.63,5.8588]
[1748466094559,0.04431473,170.66,170.64,5.8585]
[1748466095657,0.04431473,170.66,170.62,2.12352865]
[1748466095658,0.04431473,170.66,170.63,5.8587]
[1748466097059,0.04431473,170.66,170.62,7.98262865]
[1748466098158,5.8583,170.65,170.62,7.98262865]
[1748466098358,0.04431473,170.66,170.62,7.98262865]
[1748466098558,5.90241473,170.66,170.62,7.98262865]
[1748466101659,5.90241473,170.66,170.63,5.8589]
[1748466103560,0.04431473,170.66,170.62,7.98272865]
[1748466103859,0.04431473,170.66,170.62,2.12352865]
[1748466104261,0.04431473,170.66,170.62,0.04162865]
[1748466104459,10.7734862,170.65,170.62,0.04162865]
[1748466104660,29.48,170.64,170.54,29.48]
[1748466105553,5.8601,170.6,170.57,0.04194292]
[1748466106157,5.89757602,170.61,170.57,5.90284292]
[1748466106356,0.03787602,170.61,170.57,5.90284292]
[1748466107053,5.8599,170.6,170.57,5.90284292]
[1748466109057,0.03787602,170.61,170.58,5.8605]
[1748466109259,0.03787602,170.61,170.57,0.04194292]
[1748466109562,0.03787602,170.61,170.59,5.8603]
[1748466114166,0.03787602,170.61,170.6,5.8599]
[1748466117566,0.03787602,170.61,170.57,0.04194292]
[1748466118067,5.8603,170.59,170.57,0.04194292]
[1748466118265,0.03787602,170.61,170.57,0.04194292]
[1748466119963,5.8601,170.6,170.57,5.90294292]
[1748466121169,5.8601,170.6,170.57,0.04194292]
[1748466121672,5.89757602,170.61,170.57,5.90284292]
[1748466125873,5.89757602,170.61,170.58,5.8606]
[1748466126572,5.89757602,170.61,170.57,5.90274292]
[1748466126974,0.03787602,170.61,170.57,0.04194292]
[1748466127373,0.03787602,170.61,170.58,5.8606]
[1748466128575,0.03787602,170.61,170.59,5.8602]
[1748466128972,0.03787602,170.61,170.57,0.04194292]
[1748466129172,0.03787602,170.61,170.6,5.8599]
[1748466144087,29.48,170.67,170.6,6.89694573]
[1748466144886,29.48,170.67,170.63,5.8587]
[1748466144887,5.8579,170.66,170.63,5.8587]
[1748466145082,5.89518965,170.66,170.63,5.90325147]
[1748466146392,5.8584,170.65,170.63,0.04455147]
[1748466147489,12.79223538,170.66,170.63,0.04455147]
[1748466147893,6.93423538,170.66,170.63,0.04455147]
[1748466148983,5.8583,170.65,170.63,0.04455147]
[1748466154398,12.79223538,170.66,170.63,0.04455147]
[1748466158196,5.89528965,170.66,170.63,0.04455147]
[1748466159291,0.03728965,170.66,170.63,5.90345147]
[1748466160889,5.89528965,170.66,170.63,5.90345147]
[1748466165302,0.03728965,170.66,170.63,5.90345147]
[1748466166706,5.89518965,170.66,170.63,5.90345147]
[1748466171400,0.03728965,170.66,170.63,5.90345147]
[1748466179316,0.03728965,170.66,170.63,0.04455147]
[1748466180105,0.03728965,170.66,170.63,5.90335147]
[1748466180707,5.89538965,170.66,170.63,0.04455147]
[1748466180907,0.03728965,170.66,170.63,0.04455147]
[1748466181114,6.89001612,170.74,170.65,6.89001612]
[1748466181312,6.89001612,170.74,170.71,5.8558]
[1748466181512,6.89001612,170.74,170.67,6.89001612]
[1748466181708,29.42,170.75,170.67,6.89001612]
[1748466182018,36.31001612,170.75,170.67,6.89001612]
[1748466182216,36.31001612,170.75,170.69,0.04183079]
[1748466182217,0.04323375,170.73,170.69,0.04183079]
[1748466182417,0.04323375,170.73,170.72,5.8556]
[1748466184014,6.93324987,170.73,170.69,0.04183079]
[1748466184217,6.89001612,170.7,170.69,0.04183079]
[1748466185621,12.74651612,170.7,170.69,0.04183079]
[1748466186325,6.89001612,170.71,170.69,0.04183079]
[1748466187115,5.8565,170.7,170.69,0.04183079]
[1748466194323,5.8565,170.7,170.64,29.42]
[1748466194324,10.77051117,170.7,170.61,29.42]
[1748466194629,10.77051117,170.7,170.6,31.4058]
[1748466195022,5.8581,170.66,170.63,5.8588]
[1748466195227,0.04118394,170.66,170.63,5.89948299]
[1748466195721,5.89928394,170.66,170.63,5.89948299]
[1748466195919,0.04118394,170.66,170.63,0.04068299]
[1748466196628,5.8586,170.64,170.63,0.04068299]
[1748466197918,0.04118394,170.66,170.63,0.04068299]
[1748466198727,0.04118394,170.66,170.63,5.89938299]
[1748466201439,0.04118394,170.66,170.63,0.04068299]
[1748466203529,5.89918394,170.66,170.63,0.04068299]
[1748466203924,0.04118394,170.66,170.63,0.04068299]
[1748466204730,5.89918394,170.66,170.63,0.04068299]
[1748466207930,12.79429853,170.66,170.63,0.04068299]
[1748466208237,5.89918394,170.66,170.63,0.04068299]
[1748466208441,12.79429853,170.66,170.63,0.04068299]
[1748466213740,5.8583,170.65,170.63,0.04068299]
[1748466214349,12.79429853,170.66,170.63,0.04068299]
[1748466215350,5.8582,170.65,170.63,0.04068299]
[1748466218552,12.75361459,170.64,170.63,0.04068299]
[1748466224153,5.86,170.6,170.58,5.8605]
[1748466224459,6.89511459,170.6,170.53,29.4]
[1748466224656,12.75611459,170.57,170.54,5.8618]
[1748466224847,6.89511459,170.57,170.5,29.4]
[1748466225047,6.89511459,170.55,170.5,29.4]
[1748466225253,0.04288437,170.54,170.52,5.8623]
[1748466225652,0.04288437,170.54,170.51,0.04236033]
[1748466225854,0.04288437,170.54,170.52,5.8625]
[1748466229361,0.04288437,170.54,170.53,5.8623]
[1748466229763,36.29511459,170.59,170.52,6.89511459]
[1748466230059,42.15551459,170.59,170.52,6.89511459]
[1748466230561,42.15551459,170.59,170.54,5.8617]
[1748466230863,0.04317798,170.58,170.55,0.04353647]
[1748466231261,5.90387798,170.58,170.55,0.04353647]
[1748466231965,5.90387798,170.58,170.55,5.90513647]
[1748466233264,5.90387798,170.58,170.55,0.04353647]
[1748466234563,5.861,170.57,170.55,0.04353647]
[1748466235666,5.8613,170.56,170.55,0.04353647]
[1748466249282,10.83126503,170.58,170.55,0.04353647]
[1748466249576,0.04317798,170.58,170.55,5.90503647]
[1748466251179,5.90377798,170.58,170.55,5.90503647]
[1748466251380,0.04317798,170.58,170.55,5.90503647]
[1748466251775,0.04317798,170.58,170.57,5.861]
[1748466256383,0.04317798,170.58,170.55,0.04353647]
[1748466256384,0.04317798,170.58,170.56,5.8612]
[1748466256773,0.04317798,170.58,170.55,0.04353647]
[1748466257673,5.90387798,170.58,170.55,5.90503647]
[1748466257879,6.90199279,170.57,170.55,5.90503647]
[1748466258582,6.90199279,170.57,170.56,5.8613]
[1748466259387,0.04317798,170.58,170.55,0.04353647]
[1748466259388,0.04317798,170.58,170.57,5.861]
[1748466259678,0.04317798,170.58,170.55,0.04353647]
[1748466259679,5.90377798,170.58,170.55,0.04353647]
[1748466259885,0.04317798,170.58,170.55,0.04353647]
[1748466260991,0.04317798,170.58,170.56,5.8613]
[1748466261690,0.04317798,170.58,170.55,5.90503647]
[1748466262088,0.04317798,170.58,170.55,0.04353647]
[1748466262282,6.90199279,170.57,170.55,0.04353647]
[1748466263182,5.8613,170.56,170.55,0.04353647]
[1748466268393,5.861,170.57,170.55,0.04353647]
[1748466270093,5.8613,170.56,170.55,0.04353647]
[1748466270890,5.861,170.57,170.55,5.90493647]
[1748466271092,29.42317798,170.58,170.55,0.04353647]
[1748466271397,0.04317798,170.58,170.55,0.04353647]
[1748466271595,0.04317798,170.58,170.56,5.8611]
[1748466272097,0.04317798,170.58,170.55,0.04353647]
[1748466272286,5.90397798,170.58,170.55,5.90503647]
[1748466273495,0.04317798,170.58,170.55,0.04353647]
[1748466273696,10.83130628,170.58,170.55,0.04353647]
[1748466275006,5.8613,170.56,170.55,0.04353647]
[1748466279302,0.04317798,170.58,170.55,0.04353647]
[1748466280004,0.04317798,170.58,170.56,5.8611]
[1748466281814,0.04317798,170.58,170.57,5.861]
[1748466288019,0.04317798,170.58,170.56,5.8611]
[1748466288715,6.90022358,170.57,170.55,5.90503647]
[1748466288920,6.90022358,170.57,170.55,0.04353647]
[1748466289127,5.8613,170.56,170.55,0.04353647]
[1748466294225,5.8624,170.53,170.5,35.2033]
[1748466294526,5.8624,170.53,170.48,3.9711]
[1748466294722,5.8624,170.53,170.49,5.8634]
[1748466294923,5.8624,170.53,170.48,3.9711]
[1748466295324,0.04127845,170.52,170.49,0.04047855]
[1748466295526,0.04127845,170.52,170.5,5.8632]
[1748466295725,0.04127845,170.52,170.49,0.04047855]
[1748466297026,0.04127845,170.52,170.51,5.863]
[1748466306032,0.04127845,170.52,170.5,5.8633]
[1748466309420,5.90397845,170.52,170.49,5.90417855]
[1748466312235,0.04127845,170.52,170.49,0.04047855]
[1748466314033,0.04127845,170.52,170.51,5.863]
[1748466315936,29.32,170.65,170.51,35.18]
[1748466316236,36.22625398,170.65,170.57,6.90625398]
[1748466316435,6.90625398,170.63,170.59,5.8601]
[1748466316826,6.9457425,170.63,170.59,5.89770206]
[1748466317033,12.8048425,170.63,170.59,5.89770206]
[1748466317630,5.8594,170.62,170.59,5.89770206]
[1748466318330,0.03948852,170.63,170.6,5.8598]
[1748466318937,5.89868852,170.63,170.6,5.8598]
[1748466320640,0.03948852,170.63,170.61,5.8595]
[1748466320837,0.03948852,170.63,170.59,0.03760206]
[1748466321039,35.33175288,170.76,170.6,40.09951927]
[1748466321341,6.01175288,170.76,170.61,2.0585]